fUST/lending_fUST_20240529
["ID","MTS","AMOUNT","RATE_DAILY","PERIOD"]
[328149690,1716940241429,-620.0306696,0.00021874,2]
[328149691,1716940241440,-500.0,0.00021917,2]
[328149692,1716940241450,-500.0,0.00021917,2]
[328149693,1716940241460,-500.0,0.00021917,2]
[328149694,1716940241469,-500.0,0.00021917,2]
[328149695,1716940241478,-534.74,0.00021917,2]
[328149696,1716940241487,-500.0,0.00021917,2]
[328149697,1716940241496,-513.07,0.00021917,2]
[328149698,1716940241506,-308.25967911,0.00021917,2]
[328149713,1716940243106,-191.74032089,0.00021917,2]
[328149714,1716940243116,-202.06505454,0.00021917,2]
[328149726,1716940245874,-297.93494546,0.00021917,2]
[328149727,1716940245883,-320.8636829,0.00021917,2]
[328149728,1716940245895,-412.5763171,0.00021917,2]
[328149729,1716940245904,-500.0,0.00021917,2]
[328149730,1716940245914,-1275.63,0.00021917,2]
[328149731,1716940245923,-151.0,0.00021917,2]
[328149732,1716940245933,-500.0,0.00021917,2]
[328149733,1716940245942,-500.0,0.00021917,2]
[328149734,1716940245951,-1149.97,0.00021917,2]
[328149735,1716940245960,-729.98,0.00021917,2]
[328149736,1716940245970,-500.0,0.00021917,2]
[328149737,1716940245979,-504.7,0.00021917,2]
[328149738,1716940245988,-500.0,0.00021917,2]
[328149739,1716940245998,-500.0,0.00021917,2]
[328149740,1716940246007,-500.0,0.00021917,2]
[328149741,1716940246016,-500.0,0.00021917,2]
[328149742,1716940246026,-500.0,0.00021917,2]
[328149743,1716940246035,-500.0,0.00021917,2]
[328149744,1716940246045,-799.01,0.00021917,2]
[328149745,1716940246056,-3637.72,0.00021917,2]
[328149746,1716940246066,-500.0,0.00021917,2]
[328149747,1716940246075,-500.0,0.00021917,2]
[328149748,1716940246084,-710.71,0.00021917,2]
[328149749,1716940246094,-500.0,0.00021917,2]
[328149750,1716940246103,-500.0,0.00021917,2]
[328149751,1716940246112,-151.0,0.00021917,2]
[328149752,1716940246122,-151.0,0.00021917,2]
[328149753,1716940246132,-219.338045,0.00021917,2]
[328149754,1716940246141,-500.0,0.00021917,2]
[328149755,1716940246151,-1507.5,0.00021917,2]
[328149756,1716940246161,-500.0,0.00021917,2]
[328149757,1716940246170,-500.0,0.00021917,2]
[328149758,1716940246181,-5110.41,0.00021917,2]
[328149759,1716940246193,-500.0,0.00021917,2]
[328149760,1716940246203,-538.04,0.00021917,2]
[328149761,1716940246212,-1395.39,0.00021917,2]
[328149762,1716940246221,-500.0,0.00021917,2]
[328149763,1716940246231,-4048.28,0.00021917,2]
[328149764,1716940246240,-500.0,0.00021917,2]
[328149765,1716940246250,-500.0,0.00021917,2]
[328149766,1716940246259,-1977.6,0.00021917,2]
[328149767,1716940246271,-515.98,0.00021917,2]
[328149768,1716940246280,-500.0,0.00021917,2]
[328149769,1716940246289,-500.0,0.00021917,2]
[328149770,1716940246299,-500.0,0.00021917,2]
[328149771,1716940246307,-693.26,0.00021917,2]
[328149772,1716940246317,-500.0,0.00021917,2]
[328149773,1716940246325,-3424.55,0.00021917,2]
[328149774,1716940246335,-1161.51,0.00021917,2]
[328149775,1716940246344,-500.0,0.00021917,2]
[328149776,1716940246353,-500.0,0.00021917,2]
[328149777,1716940246364,-794.56,0.00021917,2]
[328149778,1716940246373,-500.0,0.00021917,2]
[328149779,1716940246385,-500.0,0.00021917,2]
[328149780,1716940246394,-500.0,0.00021917,2]
[328149781,1716940246403,-500.0,0.00021917,2]
[328149782,1716940246413,-500.0,0.00021917,2]
[328149783,1716940246422,-166.666666,0.00021918,2]
[328149784,1716940246432,-164.53624275,0.00021964,2]
[328149785,1716940246441,-500.0,0.00022181,2]
[328149786,1716940246451,-580.53,0.00022181,2]
[328149787,1716940246460,-500.0,0.00022181,2]
[328149788,1716940246469,-719.48,0.00022181,2]
[328149789,1716940246479,-500.0,0.00022181,2]
[328149790,1716940246488,-500.0,0.00022181,2]
[328149791,1716940246498,-500.0,0.00022181,2]
[328149792,1716940246507,-321.18157812,0.00022181,2]
[328149793,1716940246516,-500.0,0.00022181,2]
[328149794,1716940246525,-296.03135252,0.00022182,2]
[328149795,1716940246535,-500.0,0.00022182,2]
[328149796,1716940246544,-500.0,0.00022182,2]
[328149797,1716940246553,-373.35847978,0.00022182,2]
[328149798,1716940246563,-500.0,0.00022182,2]
[328149799,1716940246572,-500.0,0.00022182,2]
[328149800,1716940246581,-500.0,0.00022182,2]
[328149801,1716940246590,-742.53,0.00022182,2]
[328149802,1716940246599,-371.63202969,0.00022182,2]
[328149803,1716940246609,-2333.44716082,0.00022186,2]
[328149804,1716940246619,-5947.65828415,0.00022186,2]
[328149805,1716940246629,-155.08139107,0.00022186,2]
[328149806,1716940246638,-223.79761603,0.00022186,2]
[328149807,1716940246648,-461.34904634,0.00022186,2]
[328149808,1716940246657,-155.04636224,0.00022186,2]
[328149809,1716940246667,-4055.28584781,0.00022191,7]
[328149810,1716940246676,-500.0,0.00022191,2]
[328149811,1716940246685,-500.0,0.00022191,2]
[328149812,1716940246695,-500.0,0.00022191,2]
[328149813,1716940246703,-534.74,0.00022191,2]
[328149814,1716940246712,-500.0,0.00022191,2]
[328149815,1716940246722,-513.07,0.00022191,2]
[328149816,1716940246731,-500.0,0.00022191,2]
[328149817,1716940246741,-500.0,0.00022191,2]
[328149818,1716940246750,-733.44,0.00022191,2]
[328149819,1716940246760,-500.0,0.00022191,2]
[328149820,1716940246769,-1275.63,0.00022191,2]
[328149821,1716940246778,-500.0,0.00022191,2]
[328149822,1716940246788,-500.0,0.00022191,2]
[328149823,1716940246797,-1149.97,0.00022191,2]
[328149824,1716940246807,-729.98,0.00022191,2]
[328149825,1716940246816,-646.92679532,0.00022191,2]
[328149826,1716940246825,-504.7,0.00022191,2]
[328149827,1716940246835,-500.0,0.00022191,2]
[328149828,1716940246844,-500.0,0.00022191,2]
[328149829,1716940246853,-500.0,0.00022191,2]
[328149830,1716940246863,-500.0,0.00022191,2]
[328149831,1716940246872,-156.28781112,0.00022191,2]
[328149832,1716940246886,-343.71218888,0.00022191,2]
[328149833,1716940246896,-500.0,0.00022191,2]
[328149834,1716940246906,-799.01,0.00022191,2]
[328149835,1716940246915,-1446.86096076,0.00022191,2]
[328149836,1716940265022,150.0,0.00020086,2]
[328149838,1716941239163,-1711.9618012,0.00015683,2]
[328149839,1716941242111,-888.75027731,0.00015683,2]
[328149840,1716941242138,-627.17792572,0.00015684,2]
[328149841,1716941242161,-491.68622862,0.00019087,2]
[328149842,1716941247087,-297.79698338,0.00019087,2]
[328149843,1716941247112,-1027.8590387,0.0001921,2]
[328149844,1716941247135,-584.40198369,0.0001924,2]
[328149845,1716941248115,-658.73764921,0.0001924,2]
[328149846,1716941248139,-531.9597564,0.00019464,2]
[328149847,1716941248163,-721.4812881,0.00019576,2]
[328149848,1716941248186,-406.5712007,0.00019674,2]
[328149849,1716941248211,-1259.54609544,0.00019795,2]
[328149850,1716941250165,-2362.99815506,0.00019795,2]
[328149851,1716941250188,-2105.09601939,0.00020086,2]
[328149852,1716941346121,-150.0,0.000189,2]
[328149853,1716941346143,-250.0,0.00019651,2]
[328149854,1716941346164,-554.87273977,0.00019792,2]
[328149855,1716941353090,-6619.25578053,0.00019792,2]
[328149856,1716941364119,-14060.33878464,0.00020086,2]
[328149857,1716941387032,184.374629,0.00020115,2]
[328149858,1716941406134,796.57658636,0.00020086,2]
[328149859,1716941410799,1002.97421947,0.00015684,2]
[328149860,1716941410821,134.62534182,0.00015684,2]
[328149880,1716941437932,-299.7786707,0.00020115,2]
[328149881,1716941437942,-151.0,0.00020555,3]
[328149882,1716941437951,-151.0,0.00020778,3]
[328149883,1716941437961,-156.94058295,0.00020912,2]
[328149884,1716941438145,-1265.86470555,0.00020912,2]
[328149885,1716941438173,-2478.23983726,0.00020912,2]
[328149886,1716941438184,-522.61290648,0.00020912,2]
[328149887,1716941438194,-235.50436396,0.00020912,2]
[328149888,1716941438204,-3065.25985459,0.00020912,2]
[328149889,1716941438214,-270.78508112,0.00020912,2]
[328149890,1716941438224,-603.89460926,0.00020912,2]
[328149891,1716941438234,-395.73690521,0.00020912,2]
[328149892,1716941438244,-836.55616474,0.00020912,2]
[328149893,1716941438254,-1308.91146577,0.00020912,2]
[328149894,1716941438264,-2688.65594362,0.00021814,2]
[328149895,1716941438275,-194.19627241,0.00021817,2]
[328149896,1716941438285,-500.0,0.00021916,2]
[328149897,1716941438294,-235.36363949,0.00021916,2]
[328149898,1716941438307,-500.0,0.00021916,2]
[328149899,1716941438316,-500.0,0.00021916,2]
[328149900,1716941438326,-500.0,0.00021916,2]
[328149901,1716941438336,-500.0,0.00021916,2]
[328149902,1716941438346,-304.02447834,0.00021916,2]
[328149903,1716941438357,-3983.08440167,0.00021917,2]
[328149904,1716941438367,-461.34904634,0.00021917,2]
[328149905,1716941438377,-500.0,0.00021917,2]
[328149906,1716941438387,-751.85,0.00021917,2]
[328149907,1716941438396,-500.0,0.00021917,2]
[328149908,1716941438406,-583.98,0.00021917,2]
[328149909,1716941438415,-500.0,0.00021917,2]
[328149910,1716941438425,-722.51,0.00021917,2]
[328149911,1716941438434,-500.0,0.00021917,2]
[328149912,1716941438443,-500.0,0.00021917,2]
[328149913,1716941438452,-431.59000457,0.00021917,2]
[328149914,1716941438462,-201.96586246,0.00021917,2]
[328149915,1716941438471,-500.0,0.00021917,2]
[328149916,1716941438480,-500.0,0.00021917,2]
[328149917,1716941438490,-500.0,0.00021917,2]
[328149918,1716941438500,-500.0,0.00021917,2]
[328149919,1716941438512,-500.0,0.00021917,2]
[328149920,1716941438522,-500.0,0.00021917,2]
[328149921,1716941438533,-500.0,0.00021917,2]
[328149922,1716941438542,-500.0,0.00021917,2]
[328149923,1716941438552,-500.0,0.00021917,2]
[328149924,1716941438562,-500.0,0.00021917,2]
[328149925,1716941438571,-500.0,0.00021917,2]
[328149926,1716941438580,-500.0,0.00021917,2]
[328149927,1716941438592,-500.0,0.00021917,2]
[328149928,1716941438602,-1000.0,0.00021917,5]
[328149929,1716941438611,-500.0,0.00021917,2]
[328149930,1716941438621,-672.32,0.00021917,2]
[328149931,1716941438630,-500.0,0.00021917,2]
[328149932,1716941438639,-1232.71,0.00021917,2]
[328149933,1716941438648,-500.0,0.00021917,2]
[328149934,1716941438657,-500.0,0.00021917,2]
[328149935,1716941438667,-500.0,0.00021917,2]
[328149936,1716941438676,-669.15,0.00021917,2]
[328149937,1716941438686,-500.0,0.00021917,2]
[328149938,1716941438695,-500.0,0.00021917,2]
[328149939,1716941438705,-500.0,0.00021917,2]
[328149940,1716941438714,-90.20313565,0.00021917,2]
[328149945,1716941440952,-642.22686435,0.00021917,2]
[328149946,1716941440962,-291.83143577,0.00021917,2]
[328149993,1716941472024,291.99610679,0.00015684,2]
[328149994,1716941511212,310.08563878,9.999e-05,2]
[328149995,1716941511235,811.6640119,9.999e-05,2]
[328149996,1716941511256,934.05830012,9.999e-05,2]
[328149997,1716941511276,1000.0,9.999e-05,2]
[328149998,1716941511298,963.90389289,9.999e-05,2]
[328149999,1716941511325,33566.44944577,9.999e-05,2]
[328150001,1716941553141,922.33231082,0.00014,2]
[328150002,1716941558251,351.72730745,9.999e-05,2]
[328150003,1716941823685,371.02460308,9.999e-05,2]
[328150004,1716942181173,395.82778659,9.999e-05,2]
[328150005,1716942189037,154.8915759,9.999e-05,2]
[328150006,1716942232843,175.82731346,9.999e-05,2]
[328150007,1716942241192,154.8915759,9.999e-05,2]
[328150008,1716942244986,456.01618426,9.999e-05,2]
[328150009,1716942246674,551.32951369,9.999e-05,2]
[328150010,1716942248033,691.11464382,9.999e-05,2]
[328150011,1716942256632,154.8915759,9.999e-05,2]
[328150012,1716942289539,154.8915759,9.999e-05,2]
[328150013,1716942332170,-172.12097171,0.00015682,2]
[328150014,1716942332190,-225.6307336,0.00015684,2]
[328150015,1716942332210,-456.01618426,0.00017668,2]
[328150016,1716942332232,-395.82778659,0.00017669,2]
[328150017,1716942332252,-678.21936376,0.0001767,2]
[328150018,1716942350854,154.8915759,9.999e-05,2]
[328150019,1716942358155,285.42307397,9.999e-05,2]
[328150020,1716942432140,-250.0,0.0001703,2]
[328150021,1716942432161,-2637.75117063,0.00017185,2]
[328150022,1716942432181,-394.741606,0.00017186,2]
[328150023,1716942432202,-528.21287951,0.0001767,2]
[328150024,1716942433087,-797.25977443,0.0001767,2]
[328150025,1716942433108,-454.83837924,0.00017875,2]
[328150026,1716942433128,-395.55514245,0.00017875,2]
[328150027,1716942433149,-154.98447368,0.00017875,2]
[328150028,1716942433170,-420.09447971,0.00017875,2]
[328150029,1716942433190,-285.27796017,0.00017875,2]
[328150030,1716942433213,-154.98447368,0.00017876,2]
[328150031,1716942433234,-364.54127679,0.00017876,2]
[328150032,1716942445105,-302.0,0.00017876,2]
[328150033,1716942454106,-998.3141017,0.00017764,2]
[328150034,1716942501638,773.24001713,9.999e-05,2]
[328150035,1716942548248,-1726.5594061,0.00017764,2]
[328150036,1716942548269,-2698.20655365,0.00017875,2]
[328150037,1716942548289,-410.91438715,0.00017875,2]
[328150038,1716942548308,-772.18540491,0.00017875,2]
[328150039,1716942548328,-2398.7185778,0.00017876,2]
[328150040,1716942548348,-24890.0,0.00017877,2]
[328150041,1716942548368,-1660.2084783,0.00018499,2]
[328150042,1716942548388,-150.0,0.000189,2]
[328150043,1716942548408,-155.50462427,0.00019,2]
[328150044,1716942548428,-800.17221586,0.00019102,2]
[328150045,1716942548447,-187.525508,0.00019178,2]
[328150046,1716942548466,-156.6263305,0.00019202,2]
[328150047,1716942548485,-154.93802479,0.00019202,2]
[328150048,1716942548504,-154.93802479,0.00019202,2]
[328150049,1716942548522,-231.05856354,0.00019202,2]
[328150050,1716942548542,-181.62091911,0.00019202,2]
[328150051,1716942548561,-154.93802479,0.00019202,2]
[328150052,1716942548580,-207.77887759,0.00019202,2]
[328150053,1716942548599,-261.36166647,0.00019202,2]
[328150054,1716942548619,-524.3209427,0.00019202,2]
[328150055,1716942548638,-720.72103566,0.00019202,2]
[328150056,1716942548662,-154.93802479,0.00019202,2]
[328150057,1716942548682,-1340.26998009,0.00019202,2]
[328150058,1716942548701,-239.04002635,0.00019202,2]
[328150059,1716942548721,-154.98930074,0.00019202,2]
[328150060,1716942548740,-154.96898762,0.00019202,2]
[328150061,1716942548761,-158.69093162,0.00019202,2]
[328150062,1716942548781,-302.61666796,0.00019202,2]
[328150063,1716942548801,-916.97949432,0.00019202,2]
[328150064,1716942548821,-175.38198471,0.00019202,2]
[328150065,1716942548840,-155.06961434,0.00019202,2]
[328150066,1716942548859,-551.06160363,0.00019202,2]
[328150067,1716942548881,-690.79086436,0.00019202,2]
[328150068,1716942548900,-155.07058834,0.00019202,2]
[328150069,1716942548919,-154.93802479,0.00019203,2]
[328150070,1716942548939,-1583.07627159,0.00019203,2]
[328150071,1716942548960,-2130.66991169,0.00019203,2]
[328150072,1716942548979,-800.17221584,0.00019781,2]
[328150073,1716942548998,-184.91839482,0.00019864,2]
[328150074,1716942550099,-8401.55017753,0.00020115,2]
[328150075,1716942611076,370.16254877,0.00015682,2]
[328150102,1716942634074,-800.17221584,0.0002046,2]
[328150104,1716942634086,-19.83044434,0.00020812,2]
[328150506,1716942638952,-186.32616695,0.00020812,2]
[328150508,1716942638961,-453.61538042,0.0002091,2]
[328150510,1716942638971,-371.61497995,0.0002091,2]
[328150512,1716942638981,-720.72103566,0.00020911,2]
[328150514,1716942638991,-278.59115257,0.00020911,2]
[328150516,1716942639000,-356.35210725,0.00020911,2]
[328150518,1716942639009,-466.93761834,0.00020911,2]
[328150520,1716942639018,-258.6791279,0.00020911,2]
[328150522,1716942639027,-500.0,0.00020911,2]
[328150525,1716942639037,-165.46154975,0.00020911,2]
[328150528,1716942639047,-181.20503425,0.00020911,2]
[328150530,1716942639056,-491.16049419,0.00020911,2]
[328150532,1716942639066,-183.97004411,0.00020911,2]
[328150534,1716942639075,-112.43828724,0.00020911,2]
[328150536,1716942639089,-162.77860744,0.00020911,2]
[328150538,1716942639098,-500.0,0.00020911,2]
[328150540,1716942639107,-500.0,0.00020911,2]
[328150542,1716942639117,-500.0,0.00020911,2]
[328150544,1716942639126,-500.0,0.00020911,2]
[328150546,1716942639135,-500.0,0.00020911,2]
[328150548,1716942639145,-500.0,0.00020911,2]
[328150550,1716942639154,-500.0,0.00020911,2]
[328150552,1716942639163,-500.0,0.00020911,2]
[328150554,1716942639172,-500.0,0.00020911,2]
[328150555,1716942639181,-500.0,0.00020911,2]
[328150557,1716942639191,-500.0,0.00020911,2]
[328150559,1716942639200,-500.0,0.00020911,2]
[328150561,1716942639209,-500.0,0.00020911,2]
[328150563,1716942639218,-500.0,0.00020911,2]
[328150565,1716942639227,-500.0,0.00020911,2]
[328150567,1716942639237,-324.44990193,0.00020911,2]
[328150569,1716942639246,-500.0,0.00020911,2]
[328150571,1716942639255,-500.0,0.00020911,2]
[328150572,1716942639264,-500.0,0.00020911,2]
[328150574,1716942639274,-500.0,0.00020911,2]
[328150576,1716942639284,-500.0,0.00020911,2]
[328150578,1716942639293,-500.0,0.00020911,2]
[328150580,1716942639302,-500.0,0.00020911,2]
[328150582,1716942639312,-500.0,0.00020911,2]
[328150583,1716942639321,-500.0,0.00020911,2]
[328150585,1716942639330,-568.16480833,0.00020911,2]
[328150587,1716942639339,-1899.66876087,0.00020912,2]
[328150589,1716942639349,-283.89725164,0.00020912,2]
[328150591,1716942639358,-963.55859001,0.00020912,2]
[328150594,1716942639368,-7902.09549174,0.00020912,2]
[328150596,1716942639377,-523.01612629,0.00020912,2]
[328150598,1716942639386,-281.29504829,0.00020912,2]
[328150600,1716942639395,-834.83299088,0.00020912,2]
[328150602,1716942639405,-3161.64986713,0.00020912,2]
[328150606,1716942639448,-9710.19337952,0.00020912,2]
[328150608,1716942639460,-797.46,0.00020912,2]
[328150688,1716942643722,-28340.54823437,0.00020912,2]
[328150690,1716942643732,-325.87288803,0.00020912,2]
[328150692,1716942643742,-154.93802479,0.00020912,2]
[328150694,1716942643752,-1686.19052172,0.00020912,2]
[328150696,1716942643761,-2681.27163775,0.00020912,2]
[328150697,1716942643771,-8397.88404944,0.00020912,2]
[328150699,1716942643781,-1351.93473586,0.00020912,2]
[328150701,1716942643791,-215.7842305,0.00020912,2]
[328150703,1716942643800,-4094.39395085,0.00020912,2]
[328150705,1716942643810,-1880.30382516,0.00020912,2]
[328150706,1716942643819,-1143.89970046,0.00021,2]
[328150707,1716942643828,-151.0,0.00021,2]
[328150708,1716942643839,-800.17221584,0.00021138,2]
[328150710,1716942643849,-291.8185968,0.00021534,2]
[328150712,1716942643858,-291.8185968,0.00021534,2]
[328150714,1716942643868,-383.6358505,0.00021534,2]
[328150716,1716942643877,-153.0,0.00021808,2]
[328150718,1716942643887,-153.0,0.00021808,2]
[328150719,1716942643900,-153.0,0.00021808,2]
[328150720,1716942643910,-153.0,0.00021808,2]
[328150721,1716942643919,-153.0,0.00021808,2]
[328150722,1716942643928,-153.0,0.00021808,2]
[328150723,1716942643939,-155.513861,0.00021808,2]
[328150724,1716942643949,-153.0,0.00021808,2]
[328150725,1716942643958,-291.8185968,0.00021808,2]
[328150726,1716942643967,-291.8185968,0.00021808,2]
[328150727,1716942643979,-291.8185968,0.00021808,2]
[328150728,1716942643989,-800.17221584,0.00021817,2]
[328150729,1716942643998,-620.58425583,0.00021819,2]
[328150730,1716942644007,-7142.50874943,0.00021917,7]
[328150731,1716942644018,-3983.08440167,0.00021917,2]
[328150732,1716942644027,-1447.3033902,0.00021917,2]
[328150733,1716942644036,-461.34904634,0.00021917,2]
[328150734,1716942644046,-221.78495657,0.00021917,2]
[328150735,1716942644056,-500.0,0.00021917,2]
[328150736,1716942644065,-500.0,0.00021917,2]
[328150737,1716942644075,-500.0,0.00021917,2]
[328150738,1716942644087,-500.0,0.00021917,2]
[328150739,1716942644097,-500.0,0.00021917,2]
[328150740,1716942644106,-500.0,0.00021917,2]
[328150741,1716942644116,-692.41,0.00021917,2]
[328150742,1716942644125,-500.0,0.00021917,2]
[328150743,1716942644134,-500.0,0.00021917,2]
[328150744,1716942644144,-500.0,0.00021917,2]
[328150745,1716942644153,-500.0,0.00021917,2]
[328150746,1716942644162,-500.0,0.00021917,2]
[328150747,1716942644172,-500.0,0.00021917,2]
[328150748,1716942644181,-552.85945397,0.00021917,2]
[328150749,1716942644191,-500.0,0.00021917,2]
[328150750,1716942644200,-501.46404183,0.00021917,2]
[328150751,1716942644210,-500.0,0.00021917,2]
[328150752,1716942644219,-500.0,0.00021917,2]
[328150753,1716942644228,-500.0,0.00021917,2]
[328150754,1716942644237,-500.0,0.00021917,2]
[328150755,1716942644246,-500.0,0.00021917,2]
[328150756,1716942644255,-500.0,0.00021917,2]
[328150757,1716942644264,-644.31,0.00021917,2]
[328150758,1716942644274,-500.0,0.00021917,2]
[328150759,1716942644283,-500.0,0.00021917,2]
[328150760,1716942644292,-1244.74,0.00021917,2]
[328150761,1716942644301,-500.0,0.00021917,2]
[328150762,1716942644310,-500.0,0.00021917,2]
[328150763,1716942644319,-1054.14,0.00021917,2]
[328150764,1716942644328,-500.0,0.00021917,2]
[328150765,1716942644339,-500.0,0.00021917,2]
[328150766,1716942644348,-500.0,0.00021917,2]
[328150767,1716942644357,-500.0,0.00021917,2]
[328150768,1716942644367,-749.07,0.00021917,2]
[328150769,1716942644376,-500.0,0.00021917,2]
[328150770,1716942644385,-500.0,0.00021917,2]
[328150771,1716942644394,-500.0,0.00021917,2]
[328150772,1716942644403,-3425.86,0.00021917,2]
[328150773,1716942644412,-720.52,0.00021917,2]
[328150774,1716942644421,-681.1,0.00021917,2]
[328150775,1716942644431,-500.0,0.00021917,2]
[328150776,1716942644441,-500.0,0.00021917,2]
[328150777,1716942644451,-500.0,0.00021917,2]
[328150778,1716942644460,-500.0,0.00021917,2]
[328150779,1716942644618,-5179.8,0.00021917,2]
[328150780,1716942644640,-500.0,0.00021917,2]
[328150781,1716942644650,-544.79,0.00021917,2]
[328150782,1716942644660,-1519.33,0.00021917,2]
[328150783,1716942644670,-4096.32,0.00021917,2]
[328150784,1716942644680,-500.0,0.00021917,2]
[328150785,1716942644689,-500.0,0.00021917,2]
[328150786,1716942644699,-500.0,0.00021917,2]
[328150787,1716942644709,-500.0,0.00021917,2]
[328150788,1716942644719,-500.0,0.00021917,2]
[328150789,1716942644728,-701.95,0.00021917,2]
[328150790,1716942644737,-2002.2,0.00021917,2]
[328150791,1716942644747,-1495.1,0.00021917,2]
[328150792,1716942644762,-500.0,0.00021917,2]
[328150793,1716942644772,-500.0,0.00021917,2]
[328150794,1716942644782,-761.45,0.00021917,2]
[328150795,1716942644792,-3475.56,0.00021917,2]
[328150796,1716942644801,-500.0,0.00021917,2]
[328150797,1716942644811,-500.0,0.00021917,2]
[328150798,1716942644821,-642.82557329,0.00021917,2]
[328150799,1716942644830,-500.0,0.00021917,2]
[328150800,1716942644840,-500.0,0.00021917,2]
[328150801,1716942644849,-500.0,0.00021917,2]
[328150802,1716942644859,-500.0,0.00021917,2]
[328150803,1716942644869,-1175.01,0.00021917,2]
[328150804,1716942644878,-500.0,0.00021917,2]
[328150805,1716942644887,-559.65,0.00021917,2]
[328150806,1716942644902,-641.27,0.00021917,2]
[328150807,1716942644912,-548.19981182,0.00021917,2]
[328150808,1716942644922,-500.0,0.00021917,2]
[328150809,1716942644931,-166.666666,0.00021918,2]
[328150810,1716942644942,-200.15594363,0.00021969,2]
[328150811,1716942644951,-9886.47493633,0.00022191,7]
[328150812,1716942644961,-500.0,0.00022191,2]
[328150813,1716942644972,-500.0,0.00022191,2]
[328150814,1716942644981,-500.0,0.00022191,2]
[328150815,1716942644990,-500.0,0.00022191,2]
[328150816,1716942645000,-500.0,0.00022191,2]
[328150817,1716942645010,-500.0,0.00022191,2]
[328150818,1716942645019,-692.41,0.00022191,2]
[328150819,1716942645029,-500.0,0.00022191,2]
[328150820,1716942645038,-500.0,0.00022191,2]
[328150821,1716942645048,-500.0,0.00022191,2]
[328150822,1716942645057,-500.0,0.00022191,2]
[328150823,1716942645067,-500.0,0.00022191,2]
[328150824,1716942645077,-500.0,0.00022191,2]
[328150825,1716942645086,-500.0,0.00022191,2]
[328150826,1716942645095,-500.0,0.00022191,2]
[328150827,1716942645103,-500.0,0.00022191,2]
[328150828,1716942645112,-500.0,0.00022191,2]
[328150829,1716942645121,-500.0,0.00022191,2]
[328150830,1716942645131,-500.0,0.00022191,2]
[328150831,1716942645141,-500.0,0.00022191,2]
[328150832,1716942645150,-644.31,0.00022191,2]
[328150833,1716942645159,-500.0,0.00022191,2]
[328150834,1716942645168,-500.0,0.00022191,2]
[328150835,1716942645178,-1244.74,0.00022191,2]
[328150836,1716942645187,-500.0,0.00022191,2]
[328150837,1716942645197,-500.0,0.00022191,2]
[328150838,1716942645206,-1054.14,0.00022191,2]
[328150839,1716942645215,-500.0,0.00022191,2]
[328150840,1716942645225,-500.0,0.00022191,2]
[328150841,1716942645234,-500.0,0.00022191,2]
[328150842,1716942645244,-500.0,0.00022191,2]
[328150843,1716942645253,-749.07,0.00022191,2]
[328150844,1716942645262,-500.0,0.00022191,2]
[328150845,1716942645272,-500.0,0.00022191,2]
[328150846,1716942645281,-500.0,0.00022191,2]
[328150847,1716942645290,-3425.86,0.00022191,2]
[328150848,1716942645300,-720.52,0.00022191,2]
[328150849,1716942645309,-681.1,0.00022191,2]
[328150850,1716942645318,-500.0,0.00022191,2]
[328150851,1716942645328,-500.0,0.00022191,2]
[328150852,1716942645339,-5179.8,0.00022191,2]
[328150853,1716942645349,-500.0,0.00022191,2]
[328150854,1716942645359,-544.79,0.00022191,2]
[328150855,1716942645369,-1519.33,0.00022191,2]
[328150856,1716942645378,-4096.32,0.00022191,2]
[328150857,1716942645388,-500.0,0.00022191,2]